Cogmind - Beta 13 X1 *** ADVENTURER MODE // 2023.08.03 @ 12:25:37 Player: Minty Result: Self-destructed Performance ------------- Evolutions (7) 3500 Regions Visited (16) 3200 Robots Destroyed (199) 995 Value Destroyed (8515) 8515 Prototype IDs (13) 260 Alien Tech Used (0) 0 Bonus (2756) 2756 TOTAL SCORE: 19226 Bonus ------- High Alert Combat Kills 609 Follower Combat Kills 229 Entered Garrisons 200 Entered DSFs 500 Met Warlord at Base 500 MAIN.C Attacked Warlord 500 Warlord Defense Kills 434 Friendly Fire -216 Cogmind --------- Core Integrity 1300/1300 Matter 154/300 Energy 240/240 System Corruption 0% Temperature Cool (0) Movement Walking (270) Ox2 Location -3/Research Parts ------- > --- POWER (2) -------- Light Antimatter Reactor Light Antimatter Reactor > --- PROPULSION (4) --- VSS Leg VSS Leg > --- UTILITY (10) ----- Large Storage Unit Advanced Targeting Computer Weapon Mount Improved Armor Integrity Analyzer Advanced Transmission Jammer Graphene Brace System Shield Improved Corruption Screen > --- WEAPON (5) ------- (None) > --- INVENTORY (15) --- Light Nuclear Core Reinforced Fission Core Light Antimatter Reactor Flexi-carbon Leg Long-range Terrain Scanner Encrypted Comm Array Microactuators Improved Transmission Jammer Reaction Control System Improved Core Shielding Micro-nuke Launcher Peak State ------------ > --- POWER ------------ Reinforced Fission Core Light Antimatter Reactor > --- PROPULSION ------- Heavy Treads Biometal Heavy Treads > --- UTILITY ---------- Improved Cooling System Improved Cooling System Large Storage Unit Advanced Targeting Computer Improved Armor Integrity Analyzer Improved Power Shielding Layered Light Armor Plating Improved Corruption Screen > --- WEAPON ----------- Tesla Rifle Tesla Rifle Wave Gun Variable Charge Gun Heavy Beamcaster > --- INVENTORY -------- Flexi-carbon Leg Flexi-carbon Leg Flexi-carbon Leg Long-range Terrain Scanner Encrypted Comm Array Improved Transmission Jammer Improved Medium Armor Plating Vortex Rail Vortex Rail Vortex Cannon Vortex Cannon Heavy Machine Gun Micro-nuke Launcher [Rating: 113] Favorites ----------- Power Improved Deuterium Engine Engine Improved Deuterium Engine Power Core Reinforced Fission Core Reactor Light Antimatter Reactor Propulsion Improved Titanium Leg Treads Medium Treads Leg Improved Titanium Leg Hover Unit Backup Propulsion III Flight Unit VTOL Module Utility Improved Heat Sink Device Improved Heat Sink Storage Large Storage Unit Processor Improved Armor Integrity Analyzer Hackware System Shield Protection Improved Power Shielding Weapon Improved EM Pulse Cannon Energy Gun Tesla Rifle Energy Cannon Improved EM Pulse Cannon Ballistic Gun Heavy Assault Rifle Launcher Heavy Rocket Launcher Special Weapon Improved Plasma Cutter Slashing Weapon Makeshift Axe Build | -11 -10 -9 -8 -8 -7 -7 -6 -5 -5 -5 -5 -4 -4 -4 -4 -3 ------- Run | Jun Mat Mat Mat Gar Fac DSF Fac Fac Upp Upp War Pro Fac Was Fac Res Slots Evolved 14 | . . 2 2 . 2 . 2 2 . . . . 2 . . 2 Power 1 | . . . 1 . . . . . . . . . . . . . Propulsion 2 | . . 1 . . . . 1 . . . . . . . . . Utility 8 | . . 1 . . 1 . 1 2 . . . . 1 . . 2 Weapon 3 | . . . 1 . 1 . . . . . . . 1 . . . Parts Attached 218 | . 11 30 27 6 7 8 14 15 16 . 18 16 5 8 36 1 Power 30 | . . 7 6 2 1 3 2 1 1 . 2 2 . . 3 . Engine 23 | . . 7 6 2 1 3 2 1 . . 1 . . . . . Core 3 | . . . . . . . . . 1 . . 1 . . 1 . Reactor 4 | . . . . . . . . . . . 1 1 . . 2 . Propulsion 44 | . 3 8 7 . . 3 2 . 2 . 6 2 . 3 8 . Treads 9 | . . . 4 . . . . . 1 . . . . 3 1 . Leg 26 | . . 3 3 . . 3 2 . 1 . 5 2 . . 7 . Wheel . | . . . . . . . . . . . . . . . . . Hover 1 | . . . . . . . . . . . 1 . . . . . Flight 8 | . 3 5 . . . . . . . . . . . . . . Utility 69 | . 2 7 6 2 2 . 7 5 6 . 2 5 2 5 17 1 Device 35 | . 1 3 4 2 1 . 3 2 3 . . 3 . 3 9 1 Storage 2 | . . . . . . . . . 1 . . . 1 . . . Processor 13 | . 1 2 1 . 1 . . . . . 2 1 1 1 3 . Hackware 4 | . . 1 . . . . 1 1 . . . . . . 1 . Protection 15 | . . 1 1 . . . 3 2 2 . . 1 . 1 4 . Artifact . | . . . . . . . . . . . . . . . . . Weapon 75 | . 6 8 8 2 4 2 3 9 7 . 8 7 3 . 8 . Energy Gun 29 | . 3 3 3 . 3 . 2 2 2 . 2 3 3 . 3 . Energy Cannon 13 | . . . 2 . . 2 . 2 2 . 2 1 . . 2 . Ballistic Gun 22 | . 2 5 2 2 . . . 2 . . 4 2 . . 3 . Ballistic Cannon . | . . . . . . . . . . . . . . . . . Launcher 6 | . . . . . 1 . 1 3 1 . . . . . . . Special Weapon 2 | . 1 . . . . . . . . . . 1 . . . . Impact Weapon . | . . . . . . . . . . . . . . . . . Slashing Weapon 3 | . . . 1 . . . . . 2 . . . . . . . Piercing Weapon . | . . . . . . . . . . . . . . . . . Special Melee Weapon . | . . . . . . . . . . . . . . . . . Unidentified Prototypes 11 | . . 1 2 . 1 . 2 . . . 3 . . 2 . . Corrupted Parts 2 | . . 1 1 . . . . . . . . . . . . . System Corruption 5 | . . 2 3 . . . . . . . . . . . . . Parts Lost 62 | . . 12 2 2 . . . 14 7 . . 3 . . 19 3 Power 5 | . . 2 . . . . . 2 . . . . . . 1 . Propulsion 17 | . . 5 . . . . . 4 1 . . . . . 7 . Utility 19 | . . 2 2 . . . . 7 1 . . 2 . . 5 . Weapon 21 | . . 3 . 2 . . . 1 5 . . 1 . . 6 3 Highest Loss Streak 12 | . . 12 2 1 . . . 9 4 . . 3 . . 12 3 To Critical Strikes 2 | . . . . . . . . 1 . . . . . . 1 . Average Slot Usage (%) 77 | . 89 83 99 95 97 99 100 88 31 29 60 85 85 83 81 69 Engine 7 | . 14 10 17 18 15 15 13 9 . . 4 4 . . . . Core 1 | . . . . . . . . . . 5 4 . 5 5 6 . Reactor 1 | . . . . . . . . . . . . 5 5 5 3 9 Treads 2 | . . . 12 . . . . . 2 . . . . 5 5 . Leg 13 | . 6 7 14 27 23 23 26 20 1 5 5 23 21 3 8 9 Flight 1 | . 22 13 . . . . . . . . . . . . . . Device 12 | . 8 14 17 18 22 23 25 23 1 5 5 8 5 6 8 14 Storage 1 | . 3 . . . . . . . 3 . . . 2 5 5 4 Processor 5 | . 6 11 1 . 1 7 1 . . . 3 7 14 17 15 14 Protection 5 | . . 4 7 9 6 . 3 4 4 5 5 9 5 7 6 . Energy Gun 8 | . 13 6 8 3 11 11 6 8 2 . 7 10 21 26 15 . Energy Cannon 5 | . . . 8 10 2 10 13 8 2 . 5 4 1 . . . Ballistic Gun 4 | . 5 12 8 8 9 . . 1 3 . 5 2 1 . 1 12 Launcher 1 | . . . . . 4 7 6 2 . . . . . . . . Slashing Weapon 1 | . . . 2 . . . . . 4 5 . . . . . . Naked Turns 16 | . . . . . . . . 16 . . . . . . . . Heaviest Build 93 | 11 12 22 44 44 47 49 58 62 25 11 66 70 86 93 93 63 Greatest Support 105 | 20 20 20 84 60 60 60 80 80 23 20 80 80 80 105 105 24 Greatest Overweight (x) 4 | . 2 2 1 . . . . 1 4 . 2 . 1 1 2 2 Average Overweight (x) . | . . . . . . . . . . . . . . . . 2 Largest Inventory Capacity 15 | 8 8 5 5 5 5 5 5 5 5 5 5 5 15 15 15 15 Average Capacity 6 | 8 5 5 5 5 5 5 5 5 5 5 5 5 10 15 15 15 Most Carried 15 | 6 8 5 5 5 5 5 5 5 5 4 5 5 5 15 15 11 Average Carried 5 | 6 3 4 4 5 4 4 4 4 4 4 4 4 5 11 11 10 Final Capacity 15 | 8 5 5 5 5 5 5 5 5 5 5 5 5 15 15 15 15 Final Carried 15 | 6 4 5 5 5 5 5 5 5 4 4 5 5 5 15 11 11 Class Distribution -------------------- 25% | Mutant 13% | Scavenger-Gunner 12% | Tank 11% | Gunner 7% | Scavenger-Mutant 7% | Hacker-Gunner 6% | Scavenger-Tank 4% | Skirmisher 3% | Hacker-Mutant Dominant Class ---------------- Sprinter | -10/Materials Scavenger-Mutant | -9/Materials Tank | -8/Materials Scavenger-Tank | -8/Garrison Scavenger-Tank | -7/Factory Mutant | -7/DSF Gunner | -6/Factory Hacker-Gunner | -5/Factory Mutant | -5/Upper Caves Mutant | -5/Upper Caves Gunner | -5/Warlord Scavenger-Tank | -4/Proximity Caves Scavenger-Gunner | -4/Factory Scavenger-Gunner | -4/Waste Scavenger-Gunner | -4/Factory Hacker-Gunner | -3/Research Resources | -11 -10 -9 -8 -8 -7 -7 -6 -5 -5 -5 -5 -4 -4 -4 -4 -3 ----------- Run | Jun Mat Mat Mat Gar Fac DSF Fac Fac Upp Upp War Pro Fac Was Fac Res Matter Collected 3426 | 200 122 436 536 174 . 248 233 169 512 4 196 210 50 80 256 . Remotely 370 | . . . . . . . . . 20 4 196 150 . . . . Salvage Created 8281 | . 164 600 2136 538 . 425 1339 1094 349 . 89 695 72 . 747 33 Parts 378 | . 10 43 97 7 . 25 73 45 11 . 3 23 3 . 38 . Haulers Intercepted 4 | . . 1 1 . . . 1 1 . . . . . . . . Recyclers Shooed 3 | . . . 1 . . . 1 . . . . . . . 1 . Parts Field Recycled . | . . . . . . . . . . . . . . . . . Retrieved Matter . | . . . . . . . . . . . . . . . . . Parts Self-Destructed 23 | . . . . . . . . . 5 . . 18 . . . . Prevented 8 | . . . . . . . . . 2 . . 6 . . . . Kills | -11 -10 -9 -8 -8 -7 -7 -6 -5 -5 -5 -5 -4 -4 -4 -4 -3 ------- Run | Jun Mat Mat Mat Gar Fac DSF Fac Fac Upp Upp War Pro Fac Was Fac Res Combat Hostiles Destroyed 152 | . 3 9 35 20 . 11 15 19 9 . 3 10 . . 17 1 Melee 2 | . . . . . . . . . 2 . . . . . . . Guns 70 | . 3 9 17 2 . 2 4 8 1 . 2 8 . . 13 1 Cannons 44 | . . . 14 16 . 2 5 2 . . 1 2 . . 2 . AOE 28 | . . . 3 . . 7 4 8 5 . . . . . 1 . Classes Destroyed 20 | . 3 5 3 1 . 1 4 2 1 . . . . . . . Worker 16 | . . . 2 . . . 6 4 . . . . 1 . 3 . Builder 9 | . . . 1 . . . 2 4 . . . . . . 2 . Tunneler 4 | . . 1 1 . . . 2 . . . . . . . . . Hauler 4 | . . 1 1 . . . 1 1 . . . . . . . . Recycler 6 | . 1 . 2 . . . 3 . . . . . . . . . Minesweeper 2 | . . . . . . . . . 2 . . . . . . . Mechanic 2 | . . . 1 . . . 1 . . . . . . . . . Operator 7 | . . 2 2 . . . 2 1 . . . . . . . . Watcher 12 | . 2 3 2 . . . 1 3 . . . . 1 . . . Swarmer 22 | . 3 . 6 . . 3 . . 6 . . . . . 3 1 Saboteur 1 | . . . . . . . 1 . . . . . . . . . Grunt 62 | . . 4 21 2 . 7 8 10 2 . 1 5 . . 2 . Brawler 5 | . . . . . . . 2 1 . . . 2 . . . . Duelist 2 | . . . . . . . 1 . . . . . . . 1 . Protector 1 | . . . . . . . . 1 . . . . . . . . Sentry 20 | . . 5 8 3 . . 1 . 1 . . 1 . . 1 . Hunter 14 | . . . . . . . . 5 . . . 2 . . 7 . Programmer 8 | . . . . . . . 2 2 . . 2 . . . 2 . Heavy 2 | . . . . . . 1 . . . . . . . . 1 . Decomposer 1 | . . . . . . . . . 1 . . . . . . . Assembled 15 | . . . . 15 . . . . . . . . . . . . Best Kill Streak 16 | . 6 6 11 5 . 4 7 16 4 . 1 3 1 . 8 1 Combat Bots Only 10 | . 3 3 10 5 . 4 5 8 4 . 1 3 . . 5 1 Max Kills in Single Turn 7 | . 1 1 3 1 . 3 7 3 3 . 1 1 1 . 3 1 Gunslinging 1 | . . . 1 . . . . . . . . . . . . . Exploded 3 | . . . 2 . . 2 2 3 3 . . . . . 1 . Melee 1 | . . . . . . . . . 1 . . . . . . . Uniques/NPCs Destroyed . | . . . . . . . . . . . . . . . . . Combat | -11 -10 -9 -8 -8 -7 -7 -6 -5 -5 -5 -5 -4 -4 -4 -4 -3 -------- Run | Jun Mat Mat Mat Gar Fac DSF Fac Fac Upp Upp War Pro Fac Was Fac Res Damage Taken 10504 | . 120 1049 1085 522 . 128 481 1872 677 . 185 620 10 . 3580 175 Core 1647 | . 47 247 120 12 . . . 380 177 . 52 105 . . 507 . Absorbed by Shields 1008 | . . . 232 47 . . . . . . 127 592 10 . . . Reduced by Siege Mode 10 | . . . . . . . . . . . . . . . 10 . Redirected to Shielding 598 | . . . . . . . 118 221 . . 7 50 . . 202 . Ignored by Resistances 3345 | . 37 296 428 191 . 36 144 526 194 . 69 357 5 . 1014 48 Regen/Repaired (Parts) 227 | . . 33 58 . . . 50 . . . 86 . . . . . Core Remaining (%) 72 | 100 81 38 . 76 . 100 100 . . . . 28 . . 55 . Volleys Fired 419 | . 20 45 83 51 . 9 37 41 25 . 7 28 2 . 67 4 Largest 5 | . 2 2 3 3 . 4 4 4 3 . 4 4 5 . 5 3 Hottest 367 | . 145 79 207 207 . 252 252 278 168 . 190 281 367 . 367 85 Shots Fired 947 | . 31 79 218 107 . 28 92 131 37 . 16 63 10 . 128 7 Gun 615 | . 23 79 144 49 . 13 19 69 30 . 10 44 10 . 118 7 Cannon 291 | . . . 74 58 . 8 66 50 5 . 6 14 . . 10 . Launcher 28 | . . . . . . 7 7 12 2 . . . . . . . Special 13 | . 8 . . . . . . . . . . 5 . . . . Kinetic 267 | . 4 66 70 32 . . . 24 26 . 3 10 . . 25 7 Thermal 227 | . 8 1 51 17 . 13 19 41 2 . . 30 6 . 39 . Explosive 28 | . . . . . . 7 7 12 2 . . . . . . . Electromagnetic 360 | . 19 12 97 58 . 8 66 54 7 . . 12 4 . 23 . Impact 5 | . . . . . . . . . . . . 5 . . . . Entropic 60 | . . . . . . . . . . . 13 6 . . 41 . Robot Hit Streak 29 | . 5 27 23 16 . 10 13 17 11 . 5 20 3 . 29 7 Robot Miss Streak 6 | . 4 2 4 4 . 6 4 3 2 . 2 1 1 . 2 1 Penetration Max 1 | . . . . . . . . 1 . . . . . . 1 . Secondary Targets 8 | . . 2 5 . . . . . . . . . . . . 1 Max Gunslinging Chain 1 | . . 1 1 . . . . . . . . . . . . 1 Shots Hit Robots 669 | . 17 66 158 54 . 18 67 83 39 . 12 42 4 . 103 6 Core Hits 405 | . 7 23 72 22 . 30 61 96 18 . 4 21 3 . 45 3 Critical Kills . | . . . . . . . . . . . . . . . . . Critical Parts Destroyed 4 | . . . . . . . . . . . . 1 . . 3 . Critical Strikes 26 | . 1 . 9 1 . . 3 1 2 . 1 4 . . 4 . Burn 8 | . . . 6 1 . . . . . . . . . . 1 . Corrupt 8 | . 1 . 3 . . . 3 1 . . . . . . . . Sever 3 | . . . . . . . . . 2 . . 1 . . . . Detonate 4 | . . . . . . . . . . . . 1 . . 3 . Sunder 3 | . . . . . . . . . . . 1 2 . . . . Melee Attacks 24 | . . . 4 . . . . . 20 . . . . . . . Impact . | . . . . . . . . . . . . . . . . . Slashing 24 | . . . 4 . . . . . 20 . . . . . . . Piercing . | . . . . . . . . . . . . . . . . . Sneak Attacks 4 | . . . 1 . . . . . 3 . . . . . . . Combat Hostiles . | . . . . . . . . . . . . . . . . . Follow-up Attacks . | . . . . . . . . . . . . . . . . . Damage Inflicted 23231 | . 302 987 3878 1276 . 1272 3674 4189 1477 . 563 1232 113 . 4118 150 Guns 9744 | . 230 948 1699 327 . 263 449 1452 384 . 298 766 113 . 2665 150 Cannons 6338 | . . . 1617 949 . 171 1337 843 143 . 265 365 . . 648 . Explosions 6148 | . . 39 398 . . 838 1880 1893 253 . . 82 . . 765 . Melee 816 | . . . 119 . . . . . 697 . . . . . . . Ramming 94 | . . . 45 . . . 8 1 . . . . . . 40 . Kinetic 3288 | . 50 751 732 84 . . . 526 340 . 78 148 . . 429 150 Thermal 5646 | . 72 53 947 243 . 263 1127 776 . . . 583 48 . 1534 . Explosive 4186 | . . . . . . 838 1202 1893 253 . . . . . . . Electromagnetic 6641 | . 180 183 2035 949 . 171 1337 993 187 . . 228 65 . 313 . Impact 19 | . . . . . . . . . . . . 19 . . . . Slashing 816 | . . . 119 . . . . . 697 . . . . . . . Piercing . | . . . . . . . . . . . . . . . . . Entropic 2541 | . . . . . . . . . . . 485 254 . . 1802 . Highest Corruption 6 | . . 2 4 4 . . 1 6 6 6 6 . . . . . Average Corruption 4 | . . 2 1 4 . . 1 5 6 6 6 . . . . . Corruption Purged . | . . . . . . . . . . . . . . . . . Corruption Blocked 2 | . . . . . . . . . . . . . . . 2 . Effects 76 | . . 11 2 15 . . 2 1 38 5 2 . . . . . Message Errors 22 | . . 4 . 4 . . 1 . 11 1 1 . . . . . Matter Fused 14 | . . 1 . 2 . . . . 10 1 . . . . . . Heat Flow Errors 9 | . . . 1 1 . . . . 7 . . . . . . . Energy Discharges 6 | . . 3 . 2 . . . . . 1 . . . . . . Parts Rejected 3 | . . 1 . . . . 1 . 1 . . . . . . . Parts Fused 1 | . . . . . . . . . 1 . . . . . . . Data Loss (minor) 10 | . . . 1 3 . . . 1 3 1 1 . . . . . Data Loss (major) 4 | . . . . 1 . . . . 2 1 . . . . . . Misfires 4 | . . 1 . . . . . . 3 . . . . . . . Weapon Failures 3 | . . 1 . 2 . . . . . . . . . . . . Overload Shots 1 | . . . . . . . . . . . . . . . 1 . Overflow Damage 624 | . 4 . 103 . . 6 226 9 65 . 29 . . . 182 . Projectiles 226 | . 4 . 91 . . . 50 . . . 29 . . . 52 . Explosions 333 | . . . 12 . . 6 176 9 . . . . . . 130 . Melee 65 | . . . . . . . . . 65 . . . . . . . Knockbacks 3 | . . . 2 . . . . . . . . . . . 1 . Impact 2 | . . . 1 . . . . . . . . . . . 1 . Kinetic . | . . . . . . . . . . . . . . . . . Secondary 1 | . . . 1 . . . . . . . . . . . . . Self-Inflicted Damage 351 | . . 31 96 83 . . 25 97 . . . . . . 19 . Shots 9 | . . 1 3 1 . . 1 2 . . . . . . 1 . Rammed 6 | . . . 1 . . . . . . . . . . . 5 . Targets Rammed 17 | . . . 7 . . . 2 1 . . . . . . 7 . Kicked 11 | . . . 6 . . . 2 1 . . . . . . 2 . Crushed . | . . . . . . . . . . . . . . . . . Highest Temperature 454 | . 209 36 329 318 . 132 367 303 409 . 212 454 249 . 388 4 Average Temperature 103 | . 53 13 97 100 . 65 99 103 107 . 89 169 132 . 119 2 Received Heat Transfer 2757 | . 48 564 716 187 . 54 144 426 177 . 4 254 . . 183 . Effects 20 | . . . 3 . . . 3 . . . . 11 . . 3 . Shutdowns 4 | . . . . . . . 1 . . . . 3 . . . . Energy Bleed 4 | . . . . . . . 2 . . . . 2 . . . . Interference 11 | . . . 3 . . . . . . . . 5 . . 3 . Short Circuit 1 | . . . . . . . . . . . . 1 . . . . Siege Activations 1 | . . . . . . . . . . . . . . . 1 . Total Turns 24 | . . . . . . . . . . . . . . . 24 . Longest Duration 24 | . . . . . . . . . . . . . . . 24 . Robots Corrupted 7 | . . . 1 2 . . 2 1 . . . . . . 1 . Combat Hostiles 6 | . . . . 2 . . 2 1 . . . . . . 1 . Parts Fried 36 | . . 1 9 4 . . 2 14 2 . . . 1 . 3 . Impact Corruptions . | . . . . . . . . . . . . . . . . . Robots Melted 1 | . . . 1 . . . . . . . . . . . . . Combat Hostiles 1 | . . . 1 . . . . . . . . . . . . . Parts Melted 12 | . . . 3 . . 2 . 1 . . . 1 1 . 4 . Heat Transferred 7620 | . 150 87 2150 545 . 352 755 946 . . . 827 74 . 1734 . Parts Sabotaged . | . . . . . . . . . . . . . . . . . Parts Stolen . | . . . . . . . . . . . . . . . . . Parts Stripped . | . . . . . . . . . . . . . . . . . Power Chain Reactions 7 | . . 1 4 . . . 2 . . . . . . . . . Missiles Intercepted . | . . . . . . . . . . . . . . . . . Alert | -11 -10 -9 -8 -8 -7 -7 -6 -5 -5 -5 -5 -4 -4 -4 -4 -3 ------- Run | Jun Mat Mat Mat Gar Fac DSF Fac Fac Upp Upp War Pro Fac Was Fac Res Peak Influence 847 | . 181 387 641 847 384 375 611 747 . . . . 96 24 461 178 Initial 384 | . . 64 69 364 384 54 170 258 . . . . 52 24 . 158 Average 283 | . 70 252 271 632 317 246 377 442 . . . . 60 22 157 159 Maximum Alert Level 3 | . . 1 2 3 1 1 2 3 . . . . . . 2 . Low Security (%) 38 | 100 100 49 31 . 22 33 7 . . . . . 100 100 62 100 Level 1 37 | . . 50 52 6 77 66 53 52 . . . . . . 27 . Level 2 20 | . . . 16 70 . . 39 40 . . . . . . 9 . Level 3 2 | . . . . 22 . . . 7 . . . . . . . . Level 4 . | . . . . . . . . . . . . . . . . . Level 5 . | . . . . . . . . . . . . . . . . . High Security . | . . . . . . . . . . . . . . . . . Max Security . | . . . . . . . . . . . . . . . . . Sterilizations 1 | . . . . . . 1 . . . . . . . . . . Squads Dispatched 30 | . 2 1 5 . . 1 11 4 . . . . 1 . 5 . Investigation 14 | . 2 1 3 . . . 5 1 . . . . 1 . 1 . Extermination 5 | . . . . . . . 2 1 . . . . . . 2 . Reinforcement 7 | . . . 2 . . 1 1 1 . . . . . . 2 . Assault 2 | . . . . . . . 1 1 . . . . . . . . Garrison 2 | . . . . . . . 2 . . . . . . . . . Intercept . | . . . . . . . . . . . . . . . . . Searches Triggered . | . . . . . . . . . . . . . . . . . Construction Impeded 3 | . . . . . . . 1 1 . . . . . . 1 . Haulers Reinforced . | . . . . . . . . . . . . . . . . . Active Scanning Responses . | . . . . . . . . . . . . . . . . . Cargo Convoy Interrupts . | . . . . . . . . . . . . . . . . . Stealth | -11 -10 -9 -8 -8 -7 -7 -6 -5 -5 -5 -5 -4 -4 -4 -4 -3 --------- Run | Jun Mat Mat Mat Gar Fac DSF Fac Fac Upp Upp War Pro Fac Was Fac Res Distress Signals 10 | . . 3 4 . . . . 1 . . 1 . . . 1 . Communications Jammed . | . . . . . . . . . . . . . . . . . Distress Signals . | . . . . . . . . . . . . . . . . . Times Spotted 213 | . 10 18 40 23 . 12 19 29 11 . 7 12 2 . 26 4 Peak Tracking Total 9 | . 3 7 6 4 . 5 6 7 4 . 9 7 2 . 6 4 Tactical Retreats 10 | . 1 1 . . . . 1 2 2 . 2 1 . . . . Traps | -11 -10 -9 -8 -8 -7 -7 -6 -5 -5 -5 -5 -4 -4 -4 -4 -3 ------- Run | Jun Mat Mat Mat Gar Fac DSF Fac Fac Upp Upp War Pro Fac Was Fac Res Traps Triggered 6 | . . . 2 1 . . . . . . 1 . 1 . 1 . Indirectly . | . . . . . . . . . . . . . . . . . Trap Hack Attempts . | . . . . . . . . . . . . . . . . . Triggered . | . . . . . . . . . . . . . . . . . Disarmed 6 | . . . 6 . . . . . . . . . . . . . Reprogrammed 2 | . . . . . . . 2 . . . . . . . . . Reused 3 | . . . . . . . . . 3 . . . . . . . Traps Extracted . | . . . . . . . . . . . . . . . . . Installed 11 | . . . . . . . . . 11 . . . . . . . Triggered 9 | . . . . . . . . . 3 . 6 . . . . . Most Traps Carried 3 | . . . . . . . . . 3 1 1 . . . . . Machines | -11 -10 -9 -8 -8 -7 -7 -6 -5 -5 -5 -5 -4 -4 -4 -4 -3 ---------- Run | Jun Mat Mat Mat Gar Fac DSF Fac Fac Upp Upp War Pro Fac Was Fac Res Machines Disabled 49 | . . . 3 5 . . 28 2 . . . . 1 . 10 . Max in Single Turn 15 | . . . 1 1 . . 15 1 . . . . 1 . 4 . Garrison Access 1 | . . . . . . . . 1 . . . . . . . . Garrison Relay 2 | . . . . 2 . . . . . . . . . . . . Phase Generator 1 | . . . . 1 . . . . . . . . . . . . Machines Repaired . | . . . . . . . . . . . . . . . . . Machines Sabotaged . | . . . . . . . . . . . . . . . . . Overloaded Fab Kills . | . . . . . . . . . . . . . . . . . Hacking | -11 -10 -9 -8 -8 -7 -7 -6 -5 -5 -5 -5 -4 -4 -4 -4 -3 --------- Run | Jun Mat Mat Mat Gar Fac DSF Fac Fac Upp Upp War Pro Fac Was Fac Res Machines Accessed 32 | . 2 6 7 2 2 . 6 2 . . 3 . 1 . 1 . Terminals 24 | . 2 5 5 2 2 . 4 2 . . . . 1 . 1 . Fabricators 1 | . . . . . . . 1 . . . . . . . . . Repair Stations 3 | . . 1 1 . . . 1 . . . . . . . . . Recycling Units . | . . . . . . . . . . . . . . . . . Scanalyzers . | . . . . . . . . . . . . . . . . . Garrison Access 1 | . . . 1 . . . . . . . . . . . . . Total Hacks 111 | . 8 23 28 4 4 . 18 6 . . 9 . 8 . 3 . Successful 62 | . 2 14 14 1 3 . 13 3 . . 9 . 3 . . . Failed 49 | . 6 9 14 3 1 . 5 3 . . . . 5 . 3 . Catastrophic 8 | . 1 . 1 . . . 3 . . . . . 2 . 1 . Database Lockouts . | . . . . . . . . . . . . . . . . . Manual 42 | . 8 10 14 1 1 . 4 2 . . . . 1 . 1 . Terminals 89 | . 8 21 24 4 4 . 11 6 . . . . 8 . 3 . Fabricators 3 | . . . . . . . 3 . . . . . . . . . Repair Stations 8 | . . 2 2 . . . 4 . . . . . . . . . Recycling Units . | . . . . . . . . . . . . . . . . . Scanalyzers . | . . . . . . . . . . . . . . . . . Garrison Access 2 | . . . 2 . . . . . . . . . . . . . Terminal Hacks 35 | . . 8 6 . 3 . 5 2 . . 9 . 2 . . . Record 8 | . . . . . . . . . . . 8 . . . . . Prototype ID Bank 1 | . . 1 . . . . . . . . . . . . . . Open Door 1 | . . . . . . . . . . . 1 . . . . . Open DSF 1 | . . . . . 1 . . . . . . . . . . . Level Access Points 1 | . . . 1 . . . . . . . . . . . . . Branch Access Points 3 | . . 1 1 . . . . . . . . . 1 . . . Terminal Index 1 | . . . . . . . 1 . . . . . . . . . Alert Level 6 | . . 1 1 . . . 1 2 . . . . 1 . . . Unreport Threat 3 | . . . 1 . 2 . . . . . . . . . . . Locate Traps 2 | . . . 1 . . . 1 . . . . . . . . . Disarm Traps 1 | . . . 1 . . . . . . . . . . . . . Reprogram Traps 2 | . . . . . . . 2 . . . . . . . . . Dispatch Records 1 | . . 1 . . . . . . . . . . . . . . Security Status 1 | . . 1 . . . . . . . . . . . . . . Patrol Status 1 | . . 1 . . . . . . . . . . . . . . Registered Components 1 | . . 1 . . . . . . . . . . . . . . Registered Prototypes 1 | . . 1 . . . . . . . . . . . . . . Fabricator Hacks 1 | . . . . . . . 1 . . . . . . . . . Build 1 | . . . . . . . 1 . . . . . . . . . Repair Station Hacks 8 | . . 2 2 . . . 4 . . . . . . . . . Scan Component 4 | . . 1 1 . . . 2 . . . . . . . . . Repair 4 | . . 1 1 . . . 2 . . . . . . . . . Recycling Unit Hacks . | . . . . . . . . . . . . . . . . . Scanalyzer . | . . . . . . . . . . . . . . . . . Garrison Access Hacks 2 | . . . 2 . . . . . . . . . . . . . Unlock Access 1 | . . . 1 . . . . . . . . . . . . . Coupler Status 1 | . . . 1 . . . . . . . . . . . . . Unauthorized Hacks 16 | . 2 4 4 1 . . 3 1 . . . . 1 . . . Terminals 16 | . 2 4 4 1 . . 3 1 . . . . 1 . . . Assimilate 1 | . . 1 . . . . . . . . . . . . . . Botnet 11 | . 2 2 3 . . . 2 1 . . . . 1 . . . Disrupt 2 | . . 1 1 . . . . . . . . . . . . . Search 1 | . . . . . . . 1 . . . . . . . . . Override 1 | . . . . 1 . . . . . . . . . . . . Fabricators . | . . . . . . . . . . . . . . . . . Repair Stations . | . . . . . . . . . . . . . . . . . Recycling Units . | . . . . . . . . . . . . . . . . . Scanalyzers . | . . . . . . . . . . . . . . . . . Garrison Access . | . . . . . . . . . . . . . . . . . Data Cores Recovered 5 | . . 2 . . . . 2 1 . . . . . . . . Used 3 | . . 1 . . . . 1 1 . . . . . . . . Hacking Detections 21 | . 2 4 4 1 1 . 5 2 . . . . 1 . 1 . Full Trace Events 15 | . 2 1 4 1 . . 4 1 . . . . 1 . 1 . Feedback Events . | . . . . . . . . . . . . . . . . . Feedback Blocked . | . . . . . . . . . . . . . . . . . Robot Schematics Acquired . | . . . . . . . . . . . . . . . . . Robots Built . | . . . . . . . . . . . . . . . . . Authchips . | . . . . . . . . . . . . . . . . . Time . | . . . . . . . . . . . . . . . . . Total Robot Build Rating . | . . . . . . . . . . . . . . . . . Part Schematics Acquired . | . . . . . . . . . . . . . . . . . Parts Built 2 | . . . . . . . 2 . . . . . . . . . Authchips . | . . . . . . . . . . . . . . . . . Time 47 | . . . . . . . 47 . . . . . . . . . Total Part Build Rating 10 | . . . . . . . 10 . . . . . . . . . Parts Repaired 4 | . . 1 1 . . . 2 . . . . . . . . . Time 164 | . . 32 44 . . . 88 . . . . . . . . . Parts Recycled . | . . . . . . . . . . . . . . . . . Recycled Matter . | . . . . . . . . . . . . . . . . . Retrieved Matter . | . . . . . . . . . . . . . . . . . Retrieved Components . | . . . . . . . . . . . . . . . . . Parts Scanalyzed . | . . . . . . . . . . . . . . . . . Part Schematics Acquired . | . . . . . . . . . . . . . . . . . Parts Damaged . | . . . . . . . . . . . . . . . . . Bothacking | -11 -10 -9 -8 -8 -7 -7 -6 -5 -5 -5 -5 -4 -4 -4 -4 -3 ------------ Run | Jun Mat Mat Mat Gar Fac DSF Fac Fac Upp Upp War Pro Fac Was Fac Res Used RIF Installer . | . . . . . . . . . . . . . . . . . Robots Hacked . | . . . . . . . . . . . . . . . . . Non-combat . | . . . . . . . . . . . . . . . . . Combat . | . . . . . . . . . . . . . . . . . Robot Hacks Applied . | . . . . . . . . . . . . . . . . . Relay Couplers Released 11 | . . . . 10 . . . 1 . . . . . . . . Machine Destruction 11 | . . . . 10 . . . 1 . . . . . . . . Fabnet Peak Effective % . | . . . . . . . . . . . . . . . . . Robots Rewired 7 | . . . . 4 . . . . . . 3 . . . . . Allies Hacked . | . . . . . . . . . . . . . . . . . Hacks Repelled . | . . . . . . . . . . . . . . . . . Allies | -11 -10 -9 -8 -8 -7 -7 -6 -5 -5 -5 -5 -4 -4 -4 -4 -3 -------- Run | Jun Mat Mat Mat Gar Fac DSF Fac Fac Upp Upp War Pro Fac Was Fac Res Total Allies 7 | . . . . 4 . . . . . . 3 . . . . . Largest Group 4 | . . . . 4 . . . . . . 3 3 1 . . . Highest-Rated Group 147 | . . . . 113 . . . . . . 147 147 65 . . . Highest-Rated Ally 65 | . . . . 31 . . . . . . 65 65 65 . . . Total Orders . | . . . . . . . . . . . . . . . . . Ally Attacks 53 | . . . . 28 . . . . . . 11 14 . . . . Total Damage 1271 | . . . . 387 . . . . . . 466 418 . . . . Kills 11 | . . . . 7 . . . . . . 3 1 . . . . Allies Corrupted . | . . . . . . . . . . . . . . . . . Allies Melted . | . . . . . . . . . . . . . . . . . Intel | -11 -10 -9 -8 -8 -7 -7 -6 -5 -5 -5 -5 -4 -4 -4 -4 -3 ------- Run | Jun Mat Mat Mat Gar Fac DSF Fac Fac Upp Upp War Pro Fac Was Fac Res Robot Analysis Total . | . . . . . . . . . . . . . . . . . Derelict Logs Recovered 2 | . . . . . . . . . 1 . . 1 . . . . Drone Launches . | . . . . . . . . . . . . . . . . . Drone Recoveries . | . . . . . . . . . . . . . . . . . Exploration | -11 -10 -9 -8 -8 -7 -7 -6 -5 -5 -5 -5 -4 -4 -4 -4 -3 ------------- Run | Jun Mat Mat Mat Gar Fac DSF Fac Fac Upp Upp War Pro Fac Was Fac Res Turns Passed 9521 | 8 276 550 1130 570 212 323 1173 492 1511 218 812 580 240 433 918 75 Spaces Moved 5651 | 7 411 411 501 282 153 213 737 274 790 182 443 384 152 202 486 23 Core 198 | . . 1 . . . . . 33 164 . . . . . . . Treads 946 | . . . 190 . . . . . 336 . . . . 168 252 . Legs 3683 | 7 39 120 311 282 153 213 737 241 290 182 281 384 152 34 234 23 Wheels . | . . . . . . . . . . . . . . . . . Hover 162 | . . . . . . . . . . . 162 . . . . . Flight 662 | . 372 290 . . . . . . . . . . . . . . Fastest Speed 29 | 120 32 29 130 130 130 130 130 50 100 120 120 120 120 152 105 270 Average Speed 132 | 120 43 80 144 130 130 130 130 120 174 120 162 120 148 207 134 270 Slowest Speed 270 | 120 195 260 240 130 130 130 130 130 250 120 260 120 190 240 270 270 Overloaded Moves . | . . . . . . . . . . . . . . . . . Propulsion Burnouts . | . . . . . . . . . . . . . . . . . Robots Hopped 9 | . 5 4 . . . . . . . . . . . . . . Cave-ins Triggered . | . . . . . . . . . . . . . . . . . Exploration Rate (%) 39 | 2 43 30 52 49 3 89 22 8 84 38 67 78 4 83 15 1 Regions Visited 16 Branch Regions 4 Pre-discovered Areas 1 | . . . . . . . . . 1 . . . . . . . Known Exits Taken 2 | . . . 1 . 1 . . . . . . . . . . . Unknown Exits Taken 10 | 1 1 1 . . . . 1 1 1 1 1 1 . . 1 . Scrap Searched 3 | . . . . . . . . . 2 . . 1 . . . . Spaces Dug 2 | . . . . . . . . . 2 . . . . . . . Terrain Destroyed 476 | . 2 6 16 76 . 75 79 71 30 . 10 9 . . 101 1 Melee 2 | . . . . . . . . . 2 . . . . . . . Projectile 44 | . 2 . . . . . . . . . 10 9 . . 22 1 AOE 430 | . . 6 16 76 . 75 79 71 28 . . . . . 79 . Terrain Rammed . | . . . . . . . . . . . . . . . . . Walls Destroyed . | . . . . . . . . . . . . . . . . . Machines Disabled . | . . . . . . . . . . . . . . . . . Actions | -11 -10 -9 -8 -8 -7 -7 -6 -5 -5 -5 -5 -4 -4 -4 -4 -3 --------- Run | Jun Mat Mat Mat Gar Fac DSF Fac Fac Upp Upp War Pro Fac Was Fac Res Total 6859 | 6 455 542 758 393 165 246 877 337 873 181 525 449 163 216 643 30 Wait 279 | . 4 46 99 8 . 1 69 1 . . 13 11 . . 26 1 Move 5619 | 6 400 402 501 280 153 212 736 273 789 181 442 383 152 201 485 23 Hop 9 | . 5 4 . . . . . . . . . . . . . . Pick Up 52 | . 2 6 11 . 1 4 8 2 4 . 3 4 . 1 6 . Fast Attach 108 | . 9 12 13 2 4 2 6 4 12 . 13 4 5 6 16 . Attach 40 | . . 7 5 . 1 . 3 3 3 . . 3 . . 14 1 Detach 40 | . 3 4 3 . 1 . 2 2 3 . 3 1 1 6 10 1 Swap 70 | . 2 11 9 4 2 6 5 8 1 . 5 9 . 2 6 . Drop 98 | . 10 5 23 2 3 12 9 2 5 . 12 6 3 . 6 . Fire 419 | . 20 45 83 51 . 9 37 41 25 . 7 28 2 . 67 4 Melee 24 | . . . 4 . . . . . 20 . . . . . . . Ram . | . . . . . . . . . . . . . . . . . Kick 11 | . . . 6 . . . 2 1 . . . . . . 2 . Crush 6 | . . . 1 . . . . . . . . . . . 5 . Escape Stasis 1 | . . . . 1 . . . . . . . . . . . . Rewire 72 | . . . . 45 . . . . . . 27 . . . . . Trap 11 | . . . . . . . . . 11 . . . . . . . Miscellaneous . | . . . . . . . . . . . . . . . . . Route ------- -11/Junkyard -10/Materials -9/Materials (discovered 2 exits: *Mat / Min) -8/Materials (discovered 4 exits: *Fac x3 / Gar) -8/Garrison (discovered 3 exits: *Fac x3) -7/Factory (discovered 2 exits: *Fac / DSF) -7/DSF -6/Factory -5/Factory -5/Upper Caves -5/Upper Caves -5/Warlord -4/Proximity Caves -4/Factory (discovered 5 exits: Upp x2 / Ext x2 / Arm) -4/Waste -4/Factory -3/Research History --------- Turn | Location | Event 1 | -11/Junkyard | Discovered new exit (range 3) 9 | -11/Junkyard | Entered Materials 281 | -10/Materials | Discovered new exit (range 9) 285 | -10/Materials | Entered another Materials area 285 | -9/Materials | Evolved 2 slots: Propulsion x1, Utility x1 297 | -9/Materials | Identified exit to Mines 341 | -9/Materials | Repaired Hvy. EM Pulse Gun 501 | -9/Materials | Discovered new exit (range 15) 561 | -9/Materials | Core integrity fell below 50% 608 | -9/Materials | Lost 12 parts (2p5n2u3w) 835 | -9/Materials | Entered another Materials area 835 | -8/Materials | Evolved 2 slots: Power x1, Weapon x1 863 | -8/Materials | Build established: Scavenger-Mutant 1674 | -8/Materials | Repaired Imp. Deuterium Engine 1807 | -8/Materials | Identified exit to Factory 1841 | -8/Materials | Build established: Tank 1956 | -8/Materials | Destroyed 10 combat bots 1965 | -8/Materials | Identified exit to Garrison 1965 | -8/Materials | Entered Garrison 1983 | -8/Garrison | Assembled breached garrison interior 2023 | -8/Garrison | Garrison Relay disabled 2127 | -8/Garrison | Door terminal overloaded 2389 | -8/Garrison | Garrison Relay disabled 2520 | -8/Garrison | Phase Generator disabled 2535 | -8/Garrison | Entered Factory 2535 | -7/Factory | Evolved 2 slots: Utility x1, Weapon x1 2573 | -7/Factory | Build established: Scavenger-Tank 2663 | -7/Factory | Discovered new exit (range 11) 2730 | -7/Factory | Identified exit to Factory 2747 | -7/Factory | Identified exit to DSF 2747 | -7/Factory | Entered DSF 2748 | -7/DSF | Joined Warlord attack on 0b10 via DSF 2777 | -7/DSF | Additional patrols routed to DSF 2778 | -7/DSF | Discovered exit to Factory (range 16) 3016 | -7/DSF | Sterilization system engaged 3036 | -7/DSF | Ambient heat levels rising (+10) 3051 | -7/DSF | Ambient heat levels rising (+10) 3066 | -7/DSF | Ambient heat levels rising (+10) 3070 | -7/DSF | Entered Factory 3070 | -6/Factory | Evolved 2 slots: Propulsion x1, Utility x1 3176 | -6/Factory | Fabricated Imp. Particle Charger? 3372 | -6/Factory | Repaired Imp. Deuterium Engine 3416 | -6/Factory | Repaired Hvy. Rocket Launcher 3687 | -6/Factory | Discovered new exit (range 14) 3940 | -6/Factory | Build established: Gunner 4120 | -6/Factory | First assault squad dispatched 4136 | -6/Factory | Garrison activated, responded to threat 4243 | -6/Factory | Entered another Factory area 4243 | -5/Factory | Evolved 2 slots: Utility x2 4647 | -5/Factory | Lost 3 parts (1p2u) 4717 | -5/Factory | Released all parts (4) 4725 | -5/Factory | Discovered new exit (range 13) 4731 | -5/Factory | Destroyed 8 combat bots 4735 | -5/Factory | Entered Upper Caves 4742 | -5/Upper Caves | Met a Warlord Commander 4743 | -5/Upper Caves | Learned location of Warlord (-5) 4746 | -5/Upper Caves | Lost 9 parts (1p4n3u1w) 4747 | -5/Upper Caves | Found Encrypted Comm Array 4765 | -5/Upper Caves | Learned 4 Factory zone layouts 5012 | -5/Upper Caves | Build established: Mutant 5087 | -5/Upper Caves | Attracted the attention of an 0b10 checkpoint 5771 | -5/Upper Caves | Build established: Tank 5857 | -5/Upper Caves | Core integrity fell below 50% 5899 | -5/Upper Caves | Lost 4 parts (1n3w) 6132 | -5/Upper Caves | Build established: Mutant 6201 | -5/Upper Caves | Discovered new exit (range 6) 6246 | -5/Upper Caves | Entered another Upper Caves area 6442 | -5/Upper Caves | Discovered new exit (range 11) 6464 | -5/Upper Caves | Entered Warlord 6518 | -5/Warlord | System corruption cleaned by Quarantine Array 6649 | -5/Warlord | Met Warlord 6674 | -5/Warlord | Warlord's base attacked by MAIN.C 6863 | -5/Warlord | Found Prototype Energy Gun 6863 | -5/Warlord | Identified Vortex Rail 6866 | -5/Warlord | Found Vortex Rail 6876 | -5/Warlord | Found Prototype Energy Cannon 6878 | -5/Warlord | Found Prototype Energy Cannon 6879 | -5/Warlord | Identified Vortex Cannon (x2) 7024 | -5/Warlord | Warlord forces counterattacked 7149 | -5/Warlord | Build established: Gunner 7195 | -5/Warlord | Spotted Executioner 7199 | -5/Warlord | Allies destroyed Executioner 7257 | -5/Warlord | Discovered new exit (range 15) 7276 | -5/Warlord | Entered Proximity Caves 7276 | -4/Proximity Caves | Accompanied by 3 allies 7436 | -4/Proximity Caves | Learned Research emergency access door positions 7778 | -4/Proximity Caves | Lost 3 parts (2u1w) 7848 | -4/Proximity Caves | Discovered new exit (range 3) 7856 | -4/Proximity Caves | Entered Factory 7856 | -4/Factory | Accompanied by 1 ally 7856 | -4/Factory | Evolved 2 slots: Utility x1, Weapon x1 7916 | -4/Factory | Identified exit to Upper Caves 7916 | -4/Factory | Identified exit to Extension 7916 | -4/Factory | Identified exit to Armory 8070 | -4/Factory | Spotted B-86 Titan 8096 | -4/Factory | Sucked down chute 8096 | -4/Factory | Entered Waste 8096 | -4/Waste | The area was eerily silent 8109 | -4/Waste | Build established: Scavenger-Gunner 8193 | -4/Waste | Found Prototype Device 8193 | -4/Waste | Identified System Purifier 8316 | -4/Waste | Found Prototype Processor 8316 | -4/Waste | Identified Exp. Core Analyzer 8428 | -4/Waste | Discovered new exit (range 12) 8529 | -4/Waste | Entered Factory 9072 | -4/Factory | Lost 12 parts (3n5u4w) 9150 | -4/Factory | Lost 4 parts (1p2n1w) 9374 | -4/Factory | Discovered new exit (range 14) 9447 | -4/Factory | Entered Research 9447 | -3/Research | Evolved 2 slots: Utility x2 9522 | -3/Research | Self-destructed Last Messages --------------- 09442_ Slug penetrates Wall. 09442_ Penetrated by Slug. 09443_ K-01 Serf collects debris. 09443_ Flexi-carbon Leg destroyed. 09443_ K-01 Serf collects debris. 09444_ Kicked H-77 Assassin out of the way. 09445_ Penetrated by Slug. 09446_ Slug penetrates Wall. PARAMETERS=UTILITY+2 LOCATION=UNKNOWN GOAL=ESCAPE Loading Research emergency access points (x41)... 09512_ S-43 Plague destroyed. 09512_ Switching to secondary target: S-43 Plague. 09512_ Slug penetrates S-43 Plague. 09512_ Slug penetrates Wall. 09514_ Hpw. Shotgun destroyed. 09518_ Coil Gun destroyed. 09518_ Destroyed Xenon Bombardment Thruster. 09522_ Hvy. Machine Gun destroyed. Map ----- +----------------------------------------------------+ | | | | | | | | | | | | | | | | | | | | | | | | | | | | | | | ?????????????????????????????????????????????????? | | ?????????????????????????????????????????????????? | | ?????????????????????????????????????????????????? | | ?????????????????????????????????????????????????? | | ?????????????????????????????????????????????????? | | ???????????###########?????????????##????????????? | | ???????????# #??????????? ?????????????? | | ???????????# ######???? ??????????????? | | ???????????# # +?? """ ???????????????? | | ???????????# + # s """ ??????????????? | | ???????????# # @/ """ ??????????????? | | ???????????# + # s #????????????? | | ???????????# # #?? s #????????????? | | ??????####?# # #???? #????????????? | | ????###T ######+###### #??????####????????????? | | ????# ???????????????????? | | ????# ???????????????????? | | ????# ??????????????????? | | ????# ?????????????????? | | ????####+#############+######+###????????????????? | | ????# #???????????????????????????????????? | | ????# #???????????????????????????????????? | | ????# #???????????????????????????????????? | | ????# #???????????????????????????????????? | | ????# " " #???????????????????????????????????? | | ????# "Y" #???????????????????????????????????? | | ????# """ #???????????????????????????????????? | | ????# #?????????????+?????????????????????? | | ????# #???????????????????????????????????? | | ????##########???????????????????????????????????? | | ?????????????????????????????????????????????????? | | ?????????????????????????????????????????????????? | | ?????????????????????????????????????????????????? | | ????????????????????????????????+????????????????? | | ?????????????????????????????????????????????????? | +----------------------------------------------------+ Best States ------------- Heat Dissipation 97 Energy Generation 37 Energy Capacity 490 Matter Stores 300 Matter Capacity 300 Sight Range 20 Robot Scan Range 14 Terrain Scan Range 24 Terrain Scan Density 10 Jamming Range 16 Corruption Block 15 Armor Coverage 450 Resistance: KI 20 Resistance: TH 30 Resistance: EX 20 Resistance: EM 20 Resistance: I 20 Resistance: S 20 Resistance: P 20 Core Shielding 30 Power Shielding 66 Propulsion Shielding 66 Weapon Shielding 90 Melee Speed Boost 20 Evasion (%) 64 Targeting Accuracy 28 Core Analysis 8 Armor Integrity Analysis 40 Recoil Reduction 3 Energy Filtering 30 Particle Charging 20 Offensive Hacking 22 Defensive Hacking 10 Item Schematics ----------------- None Robot Schematics ------------------ None Fabricated ------------ Imp. Particle Charger | x2 | -6/Factory | Preloaded Alien Tech Used ----------------- None Achievements -------------- None Challenges ------------ None Game ------ Seed ForceCargoVibroblade Manual? 0 Play Time 00:58:34 Cumulative 535.0 hours Start 2023.08.02 @ 12:10:35 End 2023.08.03 @ 12:25:37 Sessions 3 Manual Loads 0 Difficulty Adventurer Special Mode None Game No. 409 Rogue 167 Adventurer 99 Explorer 143 Win Type - Total 23 Types 19/0/3/0/0/0/0/1/0 Lore% 74 Gallery% 89 Achievement% 73 Wizard Run 0 Options --------- ASCII 0 Keyboard 1 Movement Numpad Keybinds 0 Fullscreen 2 Font 18/X11Bold Map View 76x50 Tactical HUD 1 Map Filters NONE Filters NONE Steam 1 RUN: 100d7438-475a-4e39-b86d-ac0306454b19